fUSD/lending_fUSD_20260515
["ID","MTS","AMOUNT","RATE_DAILY","PERIOD"]
[422297779,1778797855000,-500.0,0.00040469,120]
[422297785,1778797855000,-623.58710448,0.00040469,12]
[422297782,1778797855000,-435.81474349,0.00040469,120]
[422297786,1778797855000,-599.60298507,0.00040469,12]
[422297781,1778797855000,-500.0,0.00040469,120]
[422297787,1778797855000,-181.08010149,0.00040469,12]
[422297790,1778797855000,-500.0,0.00040469,12]
[422297792,1778797855000,-151.0,0.00040469,12]
[422297794,1778797855000,-1280.88388878,0.00040469,12]
[422297789,1778797855000,-200.0,0.00040469,12]
[422297791,1778797855000,-646.65982734,0.00040469,12]
[422297793,1778797855000,-621.78829552,0.00040469,12]
[422297788,1778797855000,-1235.18214925,0.00040469,12]
[422297795,1778797855000,-200.0,0.00040469,12]
[422297796,1778797855000,-187.78006525,0.00040469,12]
[422297797,1778797855000,-500.0,0.00040469,12]
[422297799,1778797855000,-644.79446246,0.00040469,12]
[422297798,1778797855000,-151.0,0.00040469,12]
[422297800,1778797855000,-670.58624095,0.00040469,12]
[422297801,1778797855000,-200.0,0.00040469,12]
[422297805,1778797855000,-151.0,0.00040469,12]
[422297804,1778797855000,-500.0,0.00040469,12]
[422297806,1778797855000,-668.65185757,0.00040469,12]
[422297803,1778797855000,-194.72792766,0.00040469,12]
[422297802,1778797855000,-1328.27659266,0.00040469,12]
[422297743,1778797855000,-150.0,0.0004042,10]
[422297783,1778797855000,-578.20924308,0.00040469,12]
[422297780,1778797855000,-500.0,0.00040469,120]
[422297807,1778797855000,-695.39793187,0.00040469,12]
[422297777,1778797855000,-500.0,0.00040469,120]
[422297776,1778797855000,-478.0,0.00040469,2]
[422297750,1778797855000,-150.0,0.0004042,10]
[422297753,1778797855000,-260.0,0.00040423,75]
[422297755,1778797855000,-260.0,0.00040426,76]
[422297754,1778797855000,-260.0,0.00040424,76]
[422297762,1778797855000,-260.0,0.00040438,120]
[422297751,1778797855000,-203.0,0.0004042,10]
[422297756,1778797855000,-260.0,0.00040428,76]
[422297759,1778797855000,-260.0,0.00040434,76]
[422297761,1778797855000,-1734.62772924,0.00040437,30]
[422297757,1778797855000,-260.0,0.0004043,76]
[422297758,1778797855000,-260.0,0.00040432,76]
[422297760,1778797855000,-260.0,0.00040436,76]
[422297752,1778797855000,-260.0,0.00040421,75]
[422297763,1778797855000,-199.76,0.00040438,76]
[422297784,1778797855000,-151.0,0.00040469,12]
[422297775,1778797855000,-300.0,0.00040469,10]
[422297769,1778797855000,-171.08643904,0.00040466,30]
[422297771,1778797855000,-300.0,0.00040469,10]
[422297765,1778797855000,-260.0,0.00040438,76]
[422297768,1778797855000,-385.58,0.0004045,6]
[422297770,1778797855000,-151.0,0.00040467,14]
[422297772,1778797855000,-300.0,0.00040469,10]
[422297774,1778797855000,-300.0,0.00040469,10]
[422297766,1778797855000,-157.60114915,0.00040438,30]
[422297773,1778797855000,-666.0,0.00040469,30]
[422297767,1778797855000,-168.78,0.0004045,6]
[422297764,1778797855000,-260.0,0.00040438,120]
[422297854,1778797856000,-151.0,0.00040469,12]
[422297847,1778797856000,-864.78058953,0.00040469,12]
[422297855,1778797856000,-862.28603014,0.00040469,12]
[422297844,1778797856000,-831.51979763,0.00040469,12]
[422297835,1778797856000,-151.0,0.00040469,12]
[422297839,1778797856000,-200.0,0.00040469,12]
[422297808,1778797856000,-200.0,0.00040469,12]
[422297840,1778797856000,-833.92535153,0.00040469,12]
[422297837,1778797856000,-500.0,0.00040469,12]
[422297838,1778797856000,-801.85129955,0.00040469,12]
[422297845,1778797856000,-743.50770149,0.00040469,12]
[422297849,1778797856000,-500.0,0.00040469,12]
[422297853,1778797856000,-896.77747135,0.00040469,12]
[422297846,1778797856000,-200.0,0.00040469,12]
[422297851,1778797856000,-771.01748645,0.00040469,12]
[422297852,1778797856000,-200.0,0.00040469,12]
[422297850,1778797856000,-151.0,0.00040469,12]
[422297856,1778797856000,-500.0,0.00040469,12]
[422297857,1778797856000,-151.0,0.00040469,12]
[422297865,1778797856000,-200.0,0.00040469,12]
[422297864,1778797856000,-829.12830338,0.00040469,12]
[422297858,1778797856000,-799.54513345,0.00040469,12]
[422297868,1778797856000,-500.0,0.00040469,12]
[422297859,1778797856000,-200.0,0.00040469,12]
[422297834,1778797856000,-804.17102365,0.00040469,12]
[422297848,1778797856000,-151.0,0.00040469,12]
[422297830,1778797856000,-225.18697532,0.00040469,12]
[422297829,1778797856000,-151.0,0.00040469,12]
[422297833,1778797856000,-200.0,0.00040469,12]
[422297809,1778797856000,-1377.42282659,0.00040469,12]
[422297810,1778797856000,-500.0,0.00040469,12]
[422297813,1778797856000,-151.0,0.00040469,12]
[422297811,1778797856000,-201.93286099,0.00040469,12]
[422297812,1778797856000,-693.3919763,0.00040469,12]
[422297814,1778797856000,-721.12765535,0.00040469,12]
[422297817,1778797856000,-209.40437684,0.00040469,12]
[422297815,1778797856000,-200.0,0.00040469,12]
[422297818,1778797856000,-500.0,0.00040469,12]
[422297816,1778797856000,-1428.38747117,0.00040469,12]
[422297820,1778797856000,-151.0,0.00040469,12]
[422297819,1778797856000,-719.04747942,0.00040469,12]
[422297836,1778797856000,-233.51889341,0.00040469,12]
[422297826,1778797856000,-745.65223616,0.00040469,12]
[422297827,1778797856000,-200.0,0.00040469,12]
[422297825,1778797856000,-500.0,0.00040469,12]
[422297821,1778797856000,-200.0,0.00040469,12]
[422297822,1778797856000,-747.8093786,0.00040469,12]
[422297824,1778797856000,-217.15233878,0.00040469,12]
[422297862,1778797856000,-500.0,0.00040469,12]
[422297823,1778797856000,-1481.23780761,0.00040469,12]
[422297831,1778797856000,-500.0,0.00040469,12]
[422297841,1778797856000,-151.0,0.00040469,12]
[422297843,1778797856000,-500.0,0.00040469,12]
[422297842,1778797856000,-263.25902463,0.00040469,12]
[422297832,1778797856000,-773.2413689,0.00040469,12]
[422297828,1778797856000,-775.47832561,0.00040469,12]
[422297866,1778797856000,-964.36669259,0.00040469,12]
[422297885,1778797856000,-924.60877284,0.00040469,12]
[422297860,1778797856000,-929.95823779,0.00040469,12]
[422297906,1778797856000,-500.0,0.00040469,12]
[422297897,1778797856000,-1069.23467738,0.00040469,12]
[422297898,1778797856000,-151.0,0.00040469,12]
[422297904,1778797856000,-151.0,0.00040469,12]
[422297903,1778797856000,-500.0,0.00040469,12]
[422297899,1778797856000,-1108.79636044,0.00040469,12]
[422297900,1778797856000,-500.0,0.00040469,12]
[422297901,1778797856000,-151.0,0.00040469,12]
[422297908,1778797856000,-500.0,0.00040469,12]
[422297912,1778797856000,-500.0,0.00040469,12]
[422297909,1778797856000,-151.0,0.00040469,12]
[422297907,1778797856000,-151.0,0.00040469,12]
[422297910,1778797856000,-500.0,0.00040469,12]
[422297911,1778797856000,-181.08010149,0.00040469,12]
[422297914,1778797856000,-152.0,0.00040469,12]
[422297915,1778797856000,-500.0,0.00040469,12]
[422297917,1778797856000,-152.0,0.00040469,12]
[422297913,1778797856000,-187.78006525,0.00040469,12]
[422297916,1778797856000,-194.72792766,0.00040469,12]
[422297919,1778797856000,-201.93286099,0.00040469,12]
[422297918,1778797856000,-500.0,0.00040469,12]
[422297921,1778797856000,-203.86501493,0.00040469,12]
[422297920,1778797856000,-152.0,0.00040469,12]
[422297922,1778797856000,-152.0,0.00040469,12]
[422297867,1778797856000,-151.0,0.00040469,12]
[422297905,1778797856000,-1192.36523333,0.00040469,12]
[422297896,1778797856000,-500.0,0.00040469,12]
[422297902,1778797856000,-1149.82182577,0.00040469,12]
[422297895,1778797856000,-151.0,0.00040469,12]
[422297861,1778797856000,-151.0,0.00040469,12]
[422297863,1778797856000,-151.0,0.00040469,12]
[422297874,1778797856000,-859.80605061,0.00040469,12]
[422297880,1778797856000,-891.61887448,0.00040469,12]
[422297873,1778797856000,-151.0,0.00040469,12]
[422297871,1778797856000,-200.0,0.00040469,12]
[422297869,1778797856000,-500.0,0.00040469,12]
[422297881,1778797856000,-151.0,0.00040469,12]
[422297870,1778797856000,-151.0,0.00040469,12]
[422297872,1778797856000,-1000.04826021,0.00040469,12]
[422297879,1778797856000,-1037.05004584,0.00040469,12]
[422297875,1778797856000,-500.0,0.00040469,12]
[422297878,1778797856000,-200.0,0.00040469,12]
[422297894,1778797856000,-500.0,0.00040469,12]
[422297877,1778797856000,-151.0,0.00040469,12]
[422297876,1778797856000,-500.0,0.00040469,12]
[422297888,1778797856000,-958.81929743,0.00040469,12]
[422297886,1778797856000,-500.0,0.00040469,12]
[422297887,1778797856000,-151.0,0.00040469,12]
[422297889,1778797856000,-500.0,0.00040469,12]
[422297890,1778797856000,-151.0,0.00040469,12]
[422297892,1778797856000,-151.0,0.00040469,12]
[422297891,1778797856000,-994.29561144,0.00040469,12]
[422297883,1778797856000,-500.0,0.00040469,12]
[422297882,1778797856000,-500.0,0.00040469,12]
[422297884,1778797856000,-151.0,0.00040469,12]
[422297893,1778797856000,-1031.08454906,0.00040469,12]
[422297963,1778797857000,-1000.0,0.00040469,12]
[422297967,1778797857000,-1000.0,0.00040469,12]
[422297968,1778797857000,-290.39862941,0.00040469,12]
[422297964,1778797857000,-270.0455652,0.00040469,12]
[422297960,1778797857000,-1000.0,0.00040469,12]
[422297969,1778797857000,-1000.0,0.00040469,12]
[422297950,1778797857000,-209.40437684,0.00040469,12]
[422297962,1778797857000,-260.4103811,0.00040469,12]
[422297958,1778797857000,-233.51889341,0.00040469,12]
[422297953,1778797857000,-217.15233878,0.00040469,12]
[422297948,1778797857000,-217.15233878,0.00040469,12]
[422297965,1778797857000,-1000.0,0.00040469,12]
[422297961,1778797857000,-161.9878218,0.00040469,12]
[422297966,1778797857000,-280.03725112,0.00040469,12]
[422297974,1778797857000,-151.0,0.00040469,12]
[422297982,1778797857000,-668.65185757,0.00040469,12]
[422297981,1778797857000,-232.58182938,0.00040469,12]
[422297970,1778797857000,-301.1433787,0.00040469,12]
[422297973,1778797857000,-151.0,0.00040469,12]
[422297951,1778797857000,-225.18697532,0.00040469,12]
[422297972,1778797857000,-1000.0,0.00040469,12]
[422297975,1778797857000,-599.60298507,0.00040469,12]
[422297977,1778797857000,-293.80783185,0.00040469,12]
[422297979,1778797857000,-151.0,0.00040469,12]
[422297978,1778797857000,-621.78829552,0.00040469,12]
[422297980,1778797857000,-644.79446246,0.00040469,12]
[422297976,1778797857000,-151.0,0.00040469,12]
[422297983,1778797857000,-589.06985741,0.00040469,12]
[422297971,1778797857000,-151.0,0.00040469,12]
[422297952,1778797857000,-290.39862941,0.00040469,12]
[422297947,1778797857000,-201.93286099,0.00040469,12]
[422297949,1778797857000,-280.03725112,0.00040469,12]
[422297929,1778797857000,-219.23011724,0.00040469,12]
[422297930,1778797857000,-152.0,0.00040469,12]
[422297924,1778797857000,-211.40802048,0.00040469,12]
[422297925,1778797857000,-152.0,0.00040469,12]
[422297926,1778797857000,-247.65963397,0.00040469,12]
[422297928,1778797857000,-174.61919141,0.00040469,12]
[422297927,1778797857000,-217.15233878,0.00040469,12]
[422297923,1778797857000,-209.40437684,0.00040469,12]
[422297932,1778797857000,-181.08010149,0.00040469,12]
[422297943,1778797857000,-260.4103811,0.00040469,12]
[422297931,1778797857000,-225.18697532,0.00040469,12]
[422297944,1778797857000,-194.72792766,0.00040469,12]
[422297942,1778797857000,-201.93286099,0.00040469,12]
[422297954,1778797857000,-233.51889341,0.00040469,12]
[422297933,1778797857000,-356.66386421,0.00040469,12]
[422297936,1778797857000,-187.78006525,0.00040469,12]
[422297938,1778797857000,-181.08010149,0.00040469,12]
[422297935,1778797857000,-233.51889341,0.00040469,12]
[422297939,1778797857000,-194.72792766,0.00040469,12]
[422297941,1778797857000,-187.78006525,0.00040469,12]
[422297934,1778797857000,-156.02794494,0.00040469,12]
[422297937,1778797857000,-242.15909246,0.00040469,12]
[422297946,1778797857000,-270.0455652,0.00040469,12]
[422297945,1778797857000,-209.40437684,0.00040469,12]
[422297984,1778797857000,-181.08010149,0.00040469,12]
[422297955,1778797857000,-301.1433787,0.00040469,12]
[422297956,1778797857000,-225.18697532,0.00040469,12]
[422297957,1778797857000,-242.15909246,0.00040469,12]
[422297940,1778797857000,-251.11897888,0.00040469,12]
[422297987,1778797857000,-290.26104003,0.00040469,12]
[422297959,1778797857000,-251.11897888,0.00040469,12]
[422297994,1778797857000,-217.15233878,0.00040469,12]
[422298014,1778797857000,-300.0,0.00040469,10]
[422298022,1778797857000,-152.0,0.00040497,11]
[422298033,1778797857000,-1492.74,0.00040525,120]
[422298021,1778797857000,-1000.0,0.00040492,90]
[422298023,1778797857000,-300.0,0.00040499,10]
[422298024,1778797857000,-300.0,0.00040499,10]
[422298028,1778797857000,-150.0,0.000405,120]
[422298029,1778797857000,-300.0,0.00040518,10]
[422298031,1778797857000,-300.0,0.0004052,30]
[422298025,1778797857000,-221.12902805,0.000405,120]
[422298026,1778797857000,-244.62438627,0.000405,120]
[422298027,1778797857000,-192.73772803,0.000405,60]
[422298030,1778797857000,-174.59413152,0.00040518,10]
[422298035,1778797857000,-157.75351453,0.00040531,2]
[422298045,1778797857000,-275.87281341,0.000406,20]
[422298036,1778797857000,-150.0,0.00040548,2]
[422298034,1778797857000,-10275.2733,0.00040527,2]
[422298038,1778797857000,-279.1,0.0004056,120]
[422298040,1778797857000,-150.0,0.00040568,2]
[422298037,1778797857000,-250.71221993,0.00040548,2]
[422298041,1778797857000,-150.5,0.0004057,120]
[422298044,1778797857000,-35939.2939355,0.0004059,2]
[422298043,1778797857000,-57027.73599347,0.0004059,2]
[422298039,1778797857000,-216.9,0.0004056,120]
[422298042,1778797857000,-247.61,0.0004058,120]
[422298047,1778797857000,-156.26345708,0.00040603,30]
[422298048,1778797857000,-150.8080621,0.00040603,30]
[422298046,1778797857000,-206.0,0.000406,120]
[422297985,1778797857000,-279.9045709,0.00040469,12]
[422298017,1778797857000,-200.0,0.0004047,7]
[422298016,1778797857000,-2418747.54230725,0.0004047,12]
[422298032,1778797857000,-300.0,0.00040524,10]
[422298018,1778797857000,-70843.85810045,0.0004047,30]
[422297995,1778797857000,-335.6632325,0.00040469,12]
[422297986,1778797857000,-187.78006525,0.00040469,12]
[422297996,1778797857000,-225.18697532,0.00040469,12]
[422297991,1778797857000,-312.13772435,0.00040469,12]
[422297988,1778797857000,-194.72792766,0.00040469,12]
[422297990,1778797857000,-201.93286099,0.00040469,12]
[422297989,1778797857000,-301.00069851,0.00040469,12]
[422297992,1778797857000,-209.40437684,0.00040469,12]
[422297993,1778797857000,-323.68682015,0.00040469,12]
[422297998,1778797857000,-233.51889341,0.00040469,12]
[422298020,1778797857000,-151.0,0.00040487,14]
[422298008,1778797857000,-150.0,0.00040469,120]
[422298001,1778797857000,-374.31742255,0.00040469,12]
[422298000,1778797857000,-360.96183467,0.00040469,12]
[422297999,1778797857000,-242.15909246,0.00040469,12]
[422297997,1778797857000,-348.0827721,0.00040469,12]
[422298002,1778797857000,-274.96994577,0.00040469,12]
[422298019,1778797857000,-1000.0,0.00040473,90]
[422298013,1778797857000,-289.98873107,0.00040469,10]
[422298009,1778797857000,-288.3506696,0.00040469,120]
[422298012,1778797857000,-666.0,0.00040469,30]
[422298015,1778797857000,-424.96799994,0.0004047,120]
[422298011,1778797857000,-300.0,0.00040469,10]
[422298049,1778797857000,-164.28960949,0.00040603,30]
[422298006,1778797857000,-150.0,0.00040469,120]
[422298003,1778797857000,-337.1064449,0.00040469,12]
[422298004,1778797857000,-150.0,0.00040469,120]
[422298005,1778797857000,-150.0,0.00040469,120]
[422298007,1778797857000,-150.0,0.00040469,120]
[422298010,1778797857000,-231.50831789,0.00040469,10]
[422298054,1778797858000,-689.15,0.00040646,120]
[422298051,1778797858000,-219.4892142,0.00040624,120]
[422298056,1778797858000,-200.0,0.00040671,20]
[422298059,1778797858000,-401.0,0.00040701,5]
[422298053,1778797858000,-171.08643904,0.0004063,30]
[422298058,1778797858000,-607.0,0.00040685,18]
[422298050,1778797858000,-2311.0,0.00040618,11]
[422298057,1778797858000,-300.0,0.00040685,30]
[422298052,1778797858000,-157.60114915,0.0004063,30]
[422298055,1778797858000,-1000.0,0.00040657,90]
[422298071,1778797858000,-621.27653065,0.0004076,2]
[422298062,1778797858000,-1086.43043496,0.00040723,90]
[422298060,1778797858000,-325.0,0.00040701,5]
[422298069,1778797858000,-803772.07973569,0.0004076,2]
[422298066,1778797858000,-1088.27,0.0004075,120]
[422298065,1778797858000,-972.39,0.00040734,120]
[422298070,1778797858000,-300.0,0.00037009,2]
[422298067,1778797858000,-187.69,0.0004075,120]
[422298068,1778797858000,-543.8146763,0.0004075,120]
[422298064,1778797858000,-672.87,0.00040734,120]
[422298063,1778797858000,-1492.74,0.00040731,120]
[422298061,1778797858000,-207.17094678,0.00040713,7]
[422298095,1778797859000,-689.54,0.00040912,2]
[422298103,1778797859000,-152.58,0.00040959,7]
[422298093,1778797859000,-362.07140494,0.00040908,7]
[422298094,1778797859000,-1001235.9548134,0.00040911,2]
[422298097,1778797859000,-2558.98,0.00040936,120]
[422298096,1778797859000,-1492.74,0.00040936,120]
[422298101,1778797859000,-421.24,0.00040959,7]
[422298100,1778797859000,-521.48,0.00040959,7]
[422298104,1778797859000,-500.0,0.00040959,120]
[422298099,1778797859000,-387.41,0.00040959,7]
[422298105,1778797859000,-150.0,0.00040966,120]
[422298115,1778797859000,-400.0,0.00040997,2]
[422298102,1778797859000,-250.35,0.00040959,7]
[422298116,1778797859000,-713.5607913,0.00040997,2]
[422298106,1778797859000,-689.15,0.00040971,120]
[422298108,1778797859000,-151.0,0.00040978,60]
[422298109,1778797859000,-150.0,0.00040982,30]
[422298098,1778797859000,-1191.6,0.00040959,7]
[422298091,1778797859000,-324.57910594,0.00040908,7]
[422298084,1778797859000,-219.4892142,0.00040835,120]
[422298086,1778797859000,-300.0,0.00040849,30]
[422298107,1778797859000,-178.39541889,0.00040972,2]
[422298072,1778797859000,-300.0,0.00037009,2]
[422298074,1778797859000,-4624.77303184,0.0004076,2]
[422298073,1778797859000,-300.84022195,0.0004076,2]
[422298076,1778797859000,-300.0,0.00040764,30]
[422298075,1778797859000,-191916.98529327,0.0004076,2]
[422298077,1778797859000,-421.89949204,0.00040764,30]
[422298079,1778797859000,-1012.27297031,0.000408,10]
[422298092,1778797859000,-345.36729413,0.00040908,7]
[422298088,1778797859000,-200.0,0.00040875,7]
[422298082,1778797859000,-150.0,0.00040833,120]
[422298083,1778797859000,-150.0,0.00040833,120]
[422298080,1778797859000,-157.75351453,0.00040805,2]
[422298089,1778797859000,-159.0,0.0004088,120]
[422298078,1778797859000,-2948.03,0.00040785,2]
[422298090,1778797859000,-5100.0,0.000409,90]
[422298085,1778797859000,-260.0,0.00040848,84]
[422298087,1778797859000,-249.64447243,0.00040873,60]
[422298081,1778797859000,-165.93,0.0004081,30]
[422298112,1778797859000,-470.5161329,0.00040982,30]
[422298113,1778797859000,-150.0,0.00040982,30]
[422298111,1778797859000,-150.0,0.00040982,30]
[422298135,1778797859000,-500.0,0.00041,2]
[422298138,1778797859000,-500.0,0.00041,2]
[422298132,1778797859000,-500.0,0.00041,2]
[422298134,1778797859000,-500.0,0.00041,2]
[422298142,1778797859000,-500.0,0.00041,2]
[422298139,1778797859000,-500.0,0.00041,2]
[422298145,1778797859000,-500.0,0.00041,2]
[422298148,1778797859000,-500.0,0.00041,2]
[422298136,1778797859000,-500.0,0.00041,2]
[422298146,1778797859000,-500.0,0.00041,2]
[422298149,1778797859000,-500.0,0.00041,2]
[422298147,1778797859000,-500.0,0.00041,2]
[422298151,1778797859000,-264.89014969,0.00041,2]
[422298150,1778797859000,-500.0,0.00041,2]
[422298152,1778797859000,-162.0,0.00041,120]
[422298154,1778797859000,-408.18537323,0.00041,30]
[422298153,1778797859000,-168.61163526,0.00041,30]
[422298155,1778797859000,-232.44229136,0.00041,120]
[422298143,1778797859000,-500.0,0.00041,2]
[422298140,1778797859000,-500.0,0.00041,2]
[422298144,1778797859000,-500.0,0.00041,2]
[422298141,1778797859000,-500.0,0.00041,2]
[422298114,1778797859000,-660.41911666,0.00040982,30]
[422298131,1778797859000,-500.0,0.00041,2]
[422298118,1778797859000,-157.27,0.00040998,2]
[422298126,1778797859000,-160.0,0.00041,120]
[422298122,1778797859000,-1000.0,0.00040999,120]
[422298117,1778797859000,-265.84600772,0.00040997,14]
[422298121,1778797859000,-1000.0,0.00040999,120]
[422298129,1778797859000,-690.47838678,0.00041,30]
[422298119,1778797859000,-370.8,0.00040998,2]
[422298156,1778797859000,-131863.81652845,0.00041,120]
[422298123,1778797859000,-1613.0535,0.00040999,30]
[422298120,1778797859000,-1672.7364795,0.00040998,30]
[422298137,1778797859000,-500.0,0.00041,2]
[422298133,1778797859000,-500.0,0.00041,2]
[422298130,1778797859000,-989564.13,0.00041,120]
[422298110,1778797859000,-368.18223686,0.00040982,30]
[422298124,1778797859000,-151.0,0.00041,2]
[422298128,1778797859000,-245.441297,0.00041,120]
[422298125,1778797859000,-40843.00000001,0.00041,30]
[422298127,1778797859000,-150.0,0.00041,120]
[422298157,1778797861000,-5.94068938,0.00027397,10]
[422298159,1778797862000,-926.0,0.00024498,2]
[422298161,1778797862000,-1900.45,0.00026027,2]
[422298158,1778797862000,-926.0,0.00021498,2]
[422298160,1778797862000,-324.92009383,0.000245,2]
[422298162,1778797862000,-650.07,0.00026027,2]
[422298165,1778797862000,-385.42206963,0.00026027,2]
[422298167,1778797862000,-259.30613037,0.00026055,7]
[422298166,1778797862000,-1559.09,0.00026027,2]
[422298163,1778797862000,-11.83091307,0.00026027,2]
[422298164,1778797862000,-568.0470173,0.00026027,2]
[422298168,1778797864000,2320.46931121,0.00021945,120]
[422298169,1778797883000,-6717.4501,0.00010499,2]
[422298170,1778797900000,-10000.01,0.00010399,2]
[422298171,1778797922000,-420.0,9e-05,2]
[422298172,1778798373000,1427.346,0.00027397,120]
[422298173,1778798429000,1783.41643621,0.00027397,120]
[422298174,1778798491000,240.35585167,0.00027397,120]
[422298175,1778798555000,310.92055538,0.00027397,120]
[422298176,1778798727000,150.0,0.00015,120]
[422298178,1778798791000,151.0,0.000223,120]
[422298177,1778798791000,242.0,0.00027397,120]
[422298179,1778798899000,312.0,0.00027261,120]
[422298181,1778798914000,533.78,0.00015,120]
[422298180,1778798914000,497.95084097,0.00027397,120]
[422298182,1778798932000,9478.94739861,0.00027397,120]
[422298183,1778798940000,202.76,0.000273,120]
[422298184,1778799003000,255.26,0.0002739,120]
[422298185,1778799005000,190.0,0.0001,3]
[422298193,1778799032000,-250.0,0.00010072,2]
[422298192,1778799032000,-152.0,9.955e-05,2]
[422298195,1778799032000,-51.53884189,0.00010153,2]
[422298196,1778799032000,-198.46115811,0.00010153,2]
[422298198,1778799032000,-1200.0,0.00010197,2]
[422298199,1778799032000,-300.0,0.00010197,2]
[422298197,1778799032000,-1052.78168122,0.0001018,2]
[422298200,1778799032000,-134.96627406,0.00010198,2]
[422298194,1778799032000,-166.88945014,0.00010072,2]
[422298201,1778799032000,-2642.63241699,0.00010198,2]
[422298204,1778799032000,-719.52552339,0.00010198,2]
[422298203,1778799032000,-1159.94357071,0.00010198,2]
[422298205,1778799032000,-341.348914,0.00010198,2]
[422298206,1778799032000,-985.20374786,0.00010198,2]
[422298208,1778799032000,-2434.79182097,0.00010198,2]
[422298210,1778799032000,-512.90085166,0.00010198,2]
[422298209,1778799032000,-3459.21954555,0.00010198,2]
[422298207,1778799032000,-1284.18884217,0.00010198,2]
[422298202,1778799032000,-1110.61079819,0.00010198,2]
[422298279,1778799038000,-500.0,0.00010397,2]
[422298278,1778799038000,-500.0,0.00010397,2]
[422298275,1778799038000,-500.0,0.00010397,2]
[422298274,1778799038000,-500.0,0.00010397,2]
[422298277,1778799038000,-639.29263997,0.00010397,2]
[422298288,1778799038000,-500.0,0.00010397,2]
[422298280,1778799038000,-500.0,0.00010397,2]
[422298283,1778799038000,-500.0,0.00010397,2]
[422298276,1778799038000,-500.0,0.00010397,2]
[422298286,1778799038000,-500.0,0.00010397,2]
[422298290,1778799038000,-500.0,0.00010397,2]
[422298281,1778799038000,-500.0,0.00010397,2]
[422298287,1778799038000,-571.03251556,0.00010397,2]
[422298269,1778799038000,-5511.0210389,0.00010298,2]
[422298271,1778799038000,-151.0,0.00010396,2]
[422298282,1778799038000,-500.0,0.00010397,2]
[422298272,1778799038000,-151.0,0.00010396,2]
[422298270,1778799038000,-358.07361016,0.00010299,2]
[422298265,1778799038000,-1831.296,0.00010297,2]
[422298268,1778799038000,-1806.76978668,0.00010298,2]
[422298267,1778799038000,-2500.0,0.00010298,2]
[422298266,1778799038000,-5000.0,0.00010298,2]
[422298264,1778799038000,-160.0,0.00010283,2]
[422298263,1778799038000,-208.3309892,0.00010283,2]
[422298261,1778799038000,-2485214.66769445,0.00010198,2]
[422298262,1778799038000,-152.0,0.00010212,2]
[422298273,1778799038000,-500.0,0.00010397,2]
[422298285,1778799038000,-500.0,0.00010397,2]
[422298297,1778799038000,-500.0,0.00010397,2]
[422298284,1778799038000,-500.0,0.00010397,2]
[422298291,1778799038000,-500.0,0.00010397,2]
[422298317,1778799038000,-150.0,0.00010959,2]
[422298315,1778799038000,-500.0,0.00010951,2]
[422298320,1778799038000,-288.37,0.00010989,2]
[422298316,1778799038000,-2320.46931121,0.00010951,2]
[422298313,1778799038000,-193.64960066,0.00010951,2]
[422298314,1778799038000,-250.0,0.00010951,2]
[422298309,1778799038000,-500.0,0.00010398,2]
[422298311,1778799038000,-214.95940296,0.0001062,2]
[422298312,1778799038000,-2000.0,0.00010776,2]
[422298308,1778799038000,-623.53427266,0.00010398,2]
[422298304,1778799038000,-415.79082993,0.00010398,2]
[422298301,1778799038000,-500.0,0.00010398,2]
[422298310,1778799038000,-2000.0,0.00010499,2]
[422298300,1778799038000,-308.74824156,0.00010398,2]